[Event "*** Titled Tuesday Blitz"]
[Site "Chess.com"]
[Date "2020.11.10"]
[Round "9"]
[White "1977Ivan"]
[Black "Pliukha_Mikhail"]
[Result "1-0"]
[WhiteElo "2690"]
[BlackElo "2495"]
[TimeControl "180+1"]
[EndTime "11:49:17 PST"]
[Termination "1977Ivan won by resignation"]

1. d4 {[%clk 0:02:58]} 1... Nf6 {[%clk 0:02:59.8]} 2. Nc3 {[%clk 0:02:58.4]}
2... e6 {[%clk 0:03:00.5]} 3. e4 {[%clk 0:02:57.6]} 3... d5 {[%clk 0:03:00.7]}
4. e5 {[%clk 0:02:57.8]} 4... Nfd7 {[%clk 0:03:01.4]} 5. Nce2 {[%clk 0:02:56.5]}
5... c5 {[%clk 0:03:01.7]} 6. c3 {[%clk 0:02:56.3]} 6... Nc6 {[%clk 0:03:02]} 7.
Nf3 {[%clk 0:02:54.9]} 7... cxd4 {[%clk 0:03:01.4]} 8. cxd4 {[%clk 0:02:51.6]}
8... Bb4+ {[%clk 0:03:01.7]} 9. Bd2 {[%clk 0:02:50.7]} 9... Qa5 {[%clk
0:03:01.9]} 10. Bxb4 {[%clk 0:02:49.3]} 10... Nxb4 {[%clk 0:03:02.2]} 11. Nc3
{[%clk 0:02:47.2]} 11... O-O {[%clk 0:02:58.7]} 12. a3 {[%clk 0:02:44.1]} 12...
Nc6 {[%clk 0:02:58.6]} 13. Bd3 {[%clk 0:02:44.6]} 13... b6 {[%clk 0:02:58.6]}
14. O-O {[%clk 0:02:42]} 14... b5 {[%clk 0:02:44.9]} 15. Bxh7+ {[%clk
0:02:17.9]} 15... Kxh7 {[%clk 0:02:39.1]} 16. Ng5+ {[%clk 0:02:18.8]} 16... Kg6
{[%clk 0:02:32.9]} 17. h4 {[%clk 0:02:15.2]} 17... Qb6 {[%clk 0:02:24.7]} 18.
Ne2 {[%clk 0:02:09]} 18... Kh6 {[%clk 0:01:11.6]} 19. Nf4 {[%clk 0:01:43.4]}
19... g6 {[%clk 0:01:11.3]} 20. Qg4 {[%clk 0:01:42.4]} 20... Qxd4 {[%clk
0:01:05]} 21. Nxf7+ {[%clk 0:01:40.4]} 1-0

[Event "*** Titled Tuesday Blitz"]
[Site "Chess.com"]
[Date "2020.11.10"]
[Round "9"]
[White "Stormeman100100"]
[Black "Evgeny81"]
[Result "0-1"]
[WhiteElo "2553"]
[BlackElo "2712"]
[TimeControl "180+1"]
[EndTime "11:49:18 PST"]
[Termination "Evgeny81 won by resignation"]

1. d4 {[%clk 0:03:00.9]} 1... Nf6 {[%clk 0:02:59.1]} 2. c4 {[%clk 0:02:58.5]}
2... e5 {[%clk 0:02:59.3]} 3. dxe5 {[%clk 0:02:54.4]} 3... Ne4 {[%clk
0:02:59.7]} 4. Nd2 {[%clk 0:02:51.3]} 4... Nc5 {[%clk 0:02:59.3]} 5. Ngf3 {[%clk
0:02:48.6]} 5... Nc6 {[%clk 0:02:58.4]} 6. Nb3 {[%clk 0:02:47.3]} 6... Nxb3
{[%clk 0:02:54.7]} 7. Qxb3 {[%clk 0:02:48.2]} 7... Bb4+ {[%clk 0:02:54.7]} 8.
Bd2 {[%clk 0:02:47.7]} 8... Bxd2+ {[%clk 0:02:54.7]} 9. Kxd2 {[%clk 0:02:38.2]}
9... Qe7 {[%clk 0:02:53.9]} 10. Qc3 {[%clk 0:02:36.5]} 10... d6 {[%clk
0:02:47.7]} 11. exd6 {[%clk 0:02:35.9]} 11... Qxd6+ {[%clk 0:02:48.6]} 12. Qd3
{[%clk 0:02:33.5]} 12... Qf6 {[%clk 0:02:40.9]} 13. Qc3 {[%clk 0:02:31.9]} 13...
Qd6+ {[%clk 0:02:39.9]} 14. Qd3 {[%clk 0:02:31.4]} 14... Qe7 {[%clk 0:02:20.6]}
15. e3 {[%clk 0:02:07.9]} 15... Be6 {[%clk 0:02:15]} 16. Nd4 {[%clk 0:02:06.9]}
16... O-O-O {[%clk 0:02:10.5]} 17. Qc3 {[%clk 0:01:41.4]} 17... Nxd4 {[%clk
0:02:00]} 18. exd4 {[%clk 0:01:41.2]} 18... Qf6 {[%clk 0:01:40.2]} 19. d5 {[%clk
0:01:22.3]} 19... Qxf2+ {[%clk 0:01:39.7]} 20. Be2 {[%clk 0:01:20.7]} 20... Bxd5
{[%clk 0:01:37.1]} 0-1

[Event "*** Titled Tuesday Blitz"]
[Site "Chess.com"]
[Date "2020.11.10"]
[Round "9"]
[White "TokChess"]
[Black "monalize"]
[Result "1-0"]
[WhiteElo "2454"]
[BlackElo "2305"]
[TimeControl "180+1"]
[EndTime "11:49:26 PST"]
[Termination "TokChess won by resignation"]

1. Nf3 {[%clk 0:02:48.3]} 1... d5 {[%clk 0:02:57.8]} 2. g3 {[%clk 0:02:48.1]}
2... Nf6 {[%clk 0:02:57.4]} 3. Bg2 {[%clk 0:02:48.4]} 3... g6 {[%clk 0:02:56.8]}
4. O-O {[%clk 0:02:48.6]} 4... Bg7 {[%clk 0:02:56.5]} 5. d4 {[%clk 0:02:49.3]}
5... O-O {[%clk 0:02:54.7]} 6. Nbd2 {[%clk 0:02:49.7]} 6... Bf5 {[%clk 0:02:50]}
7. c4 {[%clk 0:02:49.3]} 7... c6 {[%clk 0:02:46.7]} 8. b3 {[%clk 0:02:49.5]}
8... Na6 {[%clk 0:02:36.1]} 9. Bb2 {[%clk 0:02:47.7]} 9... Rc8 {[%clk
0:02:05.5]} 10. Rc1 {[%clk 0:02:27.9]} 10... Qa5 {[%clk 0:01:48.7]} 11. a3
{[%clk 0:02:25.1]} 11... Rfd8 {[%clk 0:01:40.1]} 12. e3 {[%clk 0:02:00.3]} 12...
Bd3 {[%clk 0:01:21.1]} 13. Re1 {[%clk 0:01:59]} 13... c5 {[%clk 0:01:21]} 14.
dxc5 {[%clk 0:01:54]} 14... Qxc5 {[%clk 0:01:20.2]} 15. b4 {[%clk 0:01:49.5]}
15... Qd6 {[%clk 0:01:16.2]} 16. c5 {[%clk 0:01:47.3]} 16... Qe6 {[%clk
0:01:11.7]} 17. Nb3 {[%clk 0:01:43]} 17... Bc4 {[%clk 0:01:00.2]} 18. Na5 {[%clk
0:01:36.4]} 18... Bb5 {[%clk 0:00:56.8]} 19. Nxb7 {[%clk 0:01:28.5]} 19... Rd7
{[%clk 0:00:52.8]} 20. Nd4 {[%clk 0:01:25.7]} 1-0

[Event "*** Titled Tuesday Blitz"]
[Site "Chess.com"]
[Date "2020.11.10"]
[Round "9"]
[White "anpospan"]
[Black "Rakhimzhan_Alen"]
[Result "0-1"]
[WhiteElo "2431"]
[BlackElo "2618"]
[TimeControl "180+1"]
[EndTime "11:49:40 PST"]
[Termination "Rakhimzhan_Alen won by resignation"]

1. d4 {[%clk 0:03:00.9]} 1... Nf6 {[%clk 0:02:59.9]} 2. c4 {[%clk 0:03:00.9]}
2... e6 {[%clk 0:02:57.6]} 3. Nc3 {[%clk 0:03:00.6]} 3... Bb4 {[%clk 0:02:58.1]}
4. a3 {[%clk 0:03:00.9]} 4... Bxc3+ {[%clk 0:02:57.1]} 5. bxc3 {[%clk
0:03:01.3]} 5... d5 {[%clk 0:02:56.9]} 6. cxd5 {[%clk 0:03:00.9]} 6... exd5
{[%clk 0:02:56.6]} 7. e3 {[%clk 0:03:00.2]} 7... O-O {[%clk 0:02:57.2]} 8. Bd3
{[%clk 0:03:00.3]} 8... c5 {[%clk 0:02:57.7]} 9. Ne2 {[%clk 0:03:00.1]} 9... b6
{[%clk 0:02:58.4]} 10. O-O {[%clk 0:02:59.9]} 10... Ba6 {[%clk 0:02:59.1]} 11.
Bxa6 {[%clk 0:02:59.4]} 11... Nxa6 {[%clk 0:03:00]} 12. f3 {[%clk 0:02:59.3]}
12... h5 {[%clk 0:02:58.8]} 13. Qd3 {[%clk 0:02:46.9]} 13... Nc7 {[%clk
0:02:56.3]} 14. e4 {[%clk 0:02:44.3]} 14... cxd4 {[%clk 0:02:49.5]} 15. cxd4
{[%clk 0:02:43.5]} 15... dxe4 {[%clk 0:02:47]} 16. fxe4 {[%clk 0:02:42.8]} 16...
Ne6 {[%clk 0:02:47.4]} 17. Bb2 {[%clk 0:02:30.2]} 17... Nc5 {[%clk 0:02:45.4]}
18. Qh3 {[%clk 0:01:37.9]} 18... Ncxe4 {[%clk 0:02:42.2]} 19. Rf4 {[%clk
0:01:37.5]} 19... Qc8 {[%clk 0:02:41.4]} 20. Qd3 {[%clk 0:01:20.8]} 20... Re8
{[%clk 0:02:41.4]} 21. Raf1 {[%clk 0:01:05.9]} 21... Qc6 {[%clk 0:02:38]} 22. d5
{[%clk 0:00:52.9]} 22... Qxd5 {[%clk 0:02:31.8]} 23. Qxd5 {[%clk 0:00:51.6]}
23... Nxd5 {[%clk 0:02:32.4]} 24. Rxf7 {[%clk 0:00:50.8]} 24... Nef6 {[%clk
0:02:31.7]} 25. Rb7 {[%clk 0:00:45.7]} 25... Rxe2 {[%clk 0:02:30.7]} 26. Bxf6
{[%clk 0:00:37]} 26... Nxf6 {[%clk 0:02:29.8]} 27. Rc1 {[%clk 0:00:33.8]} 27...
Rae8 {[%clk 0:02:30.2]} 28. Rcc7 {[%clk 0:00:30.6]} 28... Re1+ {[%clk
0:02:22.5]} 29. Kf2 {[%clk 0:00:30.7]} 29... R8e2+ {[%clk 0:02:23.3]} 30. Kg3
{[%clk 0:00:20.3]} 30... Re3+ {[%clk 0:02:22.5]} 31. Kf4 {[%clk 0:00:17.1]}
31... Nd5+ {[%clk 0:02:16.4]} 0-1

[Event "*** Titled Tuesday Blitz"]
[Site "Chess.com"]
[Date "2020.11.10"]
[Round "9"]
[White "HouseOfDurin"]
[Black "ailime26"]
[Result "0-1"]
[WhiteElo "2157"]
[BlackElo "1981"]
[TimeControl "180+1"]
[EndTime "11:49:41 PST"]
[Termination "ailime26 won on time"]

1. d4 {[%clk 0:02:51.9]} 1... d5 {[%clk 0:02:59.6]} 2. Bg5 {[%clk 0:02:51.5]}
2... Nf6 {[%clk 0:02:54.9]} 3. Bxf6 {[%clk 0:02:51.3]} 3... gxf6 {[%clk
0:02:53.1]} 4. e3 {[%clk 0:02:51.8]} 4... e5 {[%clk 0:02:52.6]} 5. c4 {[%clk
0:02:51.8]} 5... c6 {[%clk 0:02:51.2]} 6. Nc3 {[%clk 0:02:46.9]} 6... Be6 {[%clk
0:02:47.2]} 7. dxe5 {[%clk 0:02:39.4]} 7... fxe5 {[%clk 0:02:46.8]} 8. cxd5
{[%clk 0:02:37]} 8... cxd5 {[%clk 0:02:46]} 9. Bb5+ {[%clk 0:02:35.9]} 9... Nc6
{[%clk 0:02:45.6]} 10. Nf3 {[%clk 0:02:34.1]} 10... Bd6 {[%clk 0:02:41.7]} 11.
O-O {[%clk 0:02:27.9]} 11... O-O {[%clk 0:02:36.3]} 12. Nxd5 {[%clk 0:02:15.1]}
12... e4 {[%clk 0:02:34.6]} 13. Bxc6 {[%clk 0:00:50.1]} 13... bxc6 {[%clk
0:02:31.8]} 14. Nd4 {[%clk 0:00:17]} 14... cxd5 {[%clk 0:02:26.6]} 15. g3 {[%clk
0:00:16.4]} 15... Bh3 {[%clk 0:02:24.6]} 16. Re1 {[%clk 0:00:14.7]} 16... Qg5
{[%clk 0:02:22.1]} 17. f4 {[%clk 0:00:11.9]} 17... Qg6 {[%clk 0:02:17.9]} 18.
Ne2 {[%clk 0:00:08.9]} 18... Bg4 {[%clk 0:02:16.8]} 19. Qxd5 {[%clk 0:00:08.4]}
19... Rad8 {[%clk 0:02:13.9]} 20. Qc6 {[%clk 0:00:07.3]} 20... Bf3 {[%clk
0:02:09.6]} 21. Rad1 {[%clk 0:00:05.5]} 21... Qe6 {[%clk 0:02:06.6]} 22. Qa4
{[%clk 0:00:03.5]} 22... Qh3 {[%clk 0:02:05.5]} 0-1

[Event "*** Titled Tuesday Blitz"]
[Site "Chess.com"]
[Date "2020.11.10"]
[Round "9"]
[White "starworld123"]
[Black "shnitez"]
[Result "1-0"]
[WhiteElo "2685"]
[BlackElo "2527"]
[TimeControl "180+1"]
[EndTime "11:49:44 PST"]
[Termination "starworld123 won by resignation"]

1. Nf3 {[%clk 0:03:00.9]} 1... c5 {[%clk 0:02:57.1]} 2. c4 {[%clk 0:03:00.9]}
2... g6 {[%clk 0:02:54.9]} 3. d4 {[%clk 0:03:01.8]} 3... cxd4 {[%clk 0:02:54.6]}
4. Nxd4 {[%clk 0:03:02.7]} 4... Bg7 {[%clk 0:02:54.9]} 5. e4 {[%clk 0:03:03.3]}
5... Nc6 {[%clk 0:02:54.2]} 6. Be3 {[%clk 0:03:04]} 6... d6 {[%clk 0:02:53]} 7.
Nc3 {[%clk 0:03:04.6]} 7... Nf6 {[%clk 0:02:53]} 8. Be2 {[%clk 0:03:05.1]} 8...
Ng4 {[%clk 0:02:47.7]} 9. Bxg4 {[%clk 0:02:44.2]} 9... Bxg4 {[%clk 0:02:42.3]}
10. Nxc6 {[%clk 0:02:40]} 10... Bxd1 {[%clk 0:02:37]} 11. Nxd8 {[%clk
0:02:37.7]} 11... Bxc3+ {[%clk 0:01:35.2]} 12. bxc3 {[%clk 0:02:37.2]} 12... Ba4
{[%clk 0:01:33.2]} 13. Nxb7 {[%clk 0:02:36.9]} 13... a5 {[%clk 0:01:33.3]} 14.
c5 {[%clk 0:02:26.9]} 14... Bc6 {[%clk 0:01:27.2]} 15. Rb1 {[%clk 0:02:27.2]}
15... O-O {[%clk 0:01:17.7]} 16. Rb6 {[%clk 0:02:23.2]} 16... Bxe4 {[%clk
0:01:17]} 17. f3 {[%clk 0:02:22.8]} 17... Bd5 {[%clk 0:01:12.4]} 18. cxd6 {[%clk
0:02:23.1]} 18... Rfb8 {[%clk 0:01:05.4]} 19. Nxa5 {[%clk 0:02:23]} 19... exd6
{[%clk 0:00:26.2]} 20. c4 {[%clk 0:02:17.8]} 20... Re8 {[%clk 0:00:23.7]} 21.
cxd5 {[%clk 0:01:57.4]} 21... Rxe3+ {[%clk 0:00:21.9]} 22. Kf2 {[%clk
0:01:56.9]} 22... Rd3 {[%clk 0:00:18.1]} 23. Nc6 {[%clk 0:01:56.5]} 23... Rxa2+
{[%clk 0:00:17.3]} 24. Kg3 {[%clk 0:01:56.1]} 24... Rxd5 {[%clk 0:00:17.6]} 25.
Ne7+ {[%clk 0:01:56.1]} 1-0

[Event "*** Titled Tuesday Blitz"]
[Site "Chess.com"]
[Date "2020.11.10"]
[Round "9"]
[White "igorknyazev"]
[Black "PawnEatingZombie"]
[Result "1-0"]
[WhiteElo "2024"]
[BlackElo "2153"]
[TimeControl "180+1"]
[EndTime "11:49:47 PST"]
[Termination "igorknyazev won by resignation"]

1. e4 {[%clk 0:03:00.5]} 1... c6 {[%clk 0:02:59.9]} 2. f4 {[%clk 0:03:00.8]}
2... d5 {[%clk 0:03:00.8]} 3. e5 {[%clk 0:03:00.5]} 3... Bf5 {[%clk 0:02:58.4]}
4. Nf3 {[%clk 0:03:00.4]} 4... h5 {[%clk 0:02:56.8]} 5. d4 {[%clk 0:02:58.8]}
5... e6 {[%clk 0:02:56.7]} 6. Bd3 {[%clk 0:02:57.3]} 6... Nh6 {[%clk 0:02:55.5]}
7. O-O {[%clk 0:02:55.8]} 7... Be7 {[%clk 0:02:53.4]} 8. a4 {[%clk 0:02:44.4]}
8... Nd7 {[%clk 0:02:49.8]} 9. Be3 {[%clk 0:02:43.8]} 9... Bxd3 {[%clk
0:02:48.4]} 10. Qxd3 {[%clk 0:02:42.1]} 10... Nf5 {[%clk 0:02:49.3]} 11. Bf2
{[%clk 0:02:40.7]} 11... h4 {[%clk 0:02:44.5]} 12. Nc3 {[%clk 0:02:36.4]} 12...
a6 {[%clk 0:02:41.2]} 13. Nd1 {[%clk 0:02:35.9]} 13... Qc7 {[%clk 0:02:33.5]}
14. Ne3 {[%clk 0:02:34.8]} 14... g6 {[%clk 0:02:33.7]} 15. Nxf5 {[%clk
0:02:34.2]} 15... gxf5 {[%clk 0:02:33.6]} 16. Ng5 {[%clk 0:02:22.6]} 16... Bxg5
{[%clk 0:02:31.9]} 17. fxg5 {[%clk 0:02:22.4]} 17... Nf8 {[%clk 0:02:31.1]} 18.
b4 {[%clk 0:02:11.8]} 18... Ng6 {[%clk 0:02:15.8]} 19. b5 {[%clk 0:02:08.7]}
19... axb5 {[%clk 0:02:14.7]} 20. axb5 {[%clk 0:02:07.8]} 20... Kd7 {[%clk
0:02:12.2]} 21. Rfb1 {[%clk 0:01:47.8]} 21... Ra5 {[%clk 0:01:19.2]} 22. bxc6+
{[%clk 0:01:41.7]} 22... bxc6 {[%clk 0:01:18.9]} 23. Rxa5 {[%clk 0:01:40.8]}
23... Qxa5 {[%clk 0:01:19.8]} 24. Rb7+ {[%clk 0:01:36.8]} 24... Kc8 {[%clk
0:01:20.2]} 25. Rxf7 {[%clk 0:01:35.8]} 25... Qa1+ {[%clk 0:01:06.4]} 26. Qf1
{[%clk 0:01:35.3]} 26... Qxf1+ {[%clk 0:00:52.1]} 27. Kxf1 {[%clk 0:01:35.1]}
27... Rf8 {[%clk 0:00:39.6]} 28. Rxf8+ {[%clk 0:01:33.8]} 28... Nxf8 {[%clk
0:00:39.5]} 29. Bxh4 {[%clk 0:01:34.3]} 1-0

[Event "*** Titled Tuesday Blitz"]
[Site "Chess.com"]
[Date "2020.11.10"]
[Round "9"]
[White "sm_sharon"]
[Black "stepanosinovsky"]
[Result "0-1"]
[WhiteElo "2147"]
[BlackElo "2359"]
[TimeControl "180+1"]
[EndTime "11:49:49 PST"]
[Termination "stepanosinovsky won by resignation"]

1. d4 {[%clk 0:03:00.9]} 1... Nf6 {[%clk 0:02:59.7]} 2. c4 {[%clk 0:03:00.1]}
2... g6 {[%clk 0:03:00.1]} 3. Nc3 {[%clk 0:03:00.1]} 3... Bg7 {[%clk 0:03:00.6]}
4. e4 {[%clk 0:03:00.1]} 4... O-O {[%clk 0:03:01.5]} 5. Be3 {[%clk 0:02:59.7]}
5... d6 {[%clk 0:03:01.1]} 6. f3 {[%clk 0:02:59.5]} 6... c5 {[%clk 0:03:01.3]}
7. dxc5 {[%clk 0:02:58]} 7... dxc5 {[%clk 0:03:02.2]} 8. Qxd8 {[%clk 0:02:56.3]}
8... Rxd8 {[%clk 0:03:02.6]} 9. Bxc5 {[%clk 0:02:56.1]} 9... Nc6 {[%clk
0:03:03]} 10. Nge2 {[%clk 0:02:48]} 10... Nd7 {[%clk 0:02:56.5]} 11. Ba3 {[%clk
0:02:41.8]} 11... Nde5 {[%clk 0:02:54.2]} 12. Nf4 {[%clk 0:02:37.7]} 12... b6
{[%clk 0:02:46.8]} 13. Nfd5 {[%clk 0:02:28.8]} 13... e6 {[%clk 0:02:23.9]} 14.
Ne3 {[%clk 0:02:13.1]} 14... Bh6 {[%clk 0:02:06.3]} 15. Nc2 {[%clk 0:01:35.4]}
15... Bd2+ {[%clk 0:01:45.7]} 16. Ke2 {[%clk 0:01:29.7]} 16... Ba6 {[%clk
0:01:36.4]} 17. Rd1 {[%clk 0:01:06]} 17... Bxc4+ {[%clk 0:01:26.4]} 18. Kf2
{[%clk 0:01:02.9]} 18... Bxc3 {[%clk 0:01:25.7]} 19. Rxd8+ {[%clk 0:01:00.9]}
19... Rxd8 {[%clk 0:01:26.6]} 20. Bxc4 {[%clk 0:00:37.4]} 20... Nxc4 {[%clk
0:01:23.5]} 21. bxc3 {[%clk 0:00:34.9]} 21... Rd2+ {[%clk 0:01:22.1]} 0-1

[Event "*** Titled Tuesday Blitz"]
[Site "Chess.com"]
[Date "2020.11.10"]
[Round "9"]
[White "elohunter1999"]
[Black "xLuring1"]
[Result "1-0"]
[WhiteElo "2550"]
[BlackElo "2377"]
[TimeControl "180+1"]
[EndTime "11:50:02 PST"]
[Termination "elohunter1999 won by resignation"]

1. e4 {[%clk 0:03:00.9]} 1... c5 {[%clk 0:03:00]} 2. Nf3 {[%clk 0:03:00.7]} 2...
e6 {[%clk 0:03:00.6]} 3. d4 {[%clk 0:03:01]} 3... cxd4 {[%clk 0:03:01.5]} 4.
Nxd4 {[%clk 0:03:01.9]} 4... a6 {[%clk 0:03:02.4]} 5. Bd3 {[%clk 0:03:01.6]}
5... e5 {[%clk 0:03:01.8]} 6. Nb3 {[%clk 0:02:53.9]} 6... h6 {[%clk 0:03:00]} 7.
c4 {[%clk 0:02:52.9]} 7... Nf6 {[%clk 0:03:00]} 8. O-O {[%clk 0:02:52.8]} 8...
Be7 {[%clk 0:02:56.6]} 9. Nc3 {[%clk 0:02:51.7]} 9... O-O {[%clk 0:02:57.1]} 10.
Be3 {[%clk 0:02:48.1]} 10... d6 {[%clk 0:02:55.8]} 11. Be2 {[%clk 0:02:48.1]}
11... Be6 {[%clk 0:02:51.8]} 12. f3 {[%clk 0:02:39.3]} 12... Nbd7 {[%clk
0:02:51.1]} 13. Rc1 {[%clk 0:02:34.4]} 13... Rc8 {[%clk 0:02:50.5]} 14. Nd5
{[%clk 0:02:32.5]} 14... Bxd5 {[%clk 0:02:42.5]} 15. cxd5 {[%clk 0:02:31.3]}
15... Nh5 {[%clk 0:02:33.5]} 16. Rxc8 {[%clk 0:02:23.8]} 16... Qxc8 {[%clk
0:02:27.4]} 17. Qc1 {[%clk 0:02:24]} 17... g5 {[%clk 0:02:19.3]} 18. g3 {[%clk
0:02:19.2]} 18... Ng7 {[%clk 0:02:15]} 19. g4 {[%clk 0:02:14.6]} 19... b5 {[%clk
0:01:57.2]} 20. Na5 {[%clk 0:02:09.5]} 20... Qa8 {[%clk 0:01:36.3]} 21. Qc6
{[%clk 0:02:02.6]} 21... Qxc6 {[%clk 0:01:14.8]} 22. Nxc6 {[%clk 0:01:31.6]}
22... Bd8 {[%clk 0:01:10.6]} 23. Nxd8 {[%clk 0:01:28]} 23... Rxd8 {[%clk
0:01:07.7]} 24. Rc1 {[%clk 0:01:28.9]} 24... Ne8 {[%clk 0:01:00.8]} 25. b4
{[%clk 0:01:19.5]} 25... Nb8 {[%clk 0:00:52.3]} 26. Bb6 {[%clk 0:01:15.1]} 1-0

[Event "*** Titled Tuesday Blitz"]
[Site "Chess.com"]
[Date "2020.11.10"]
[Round "9"]
[White "GigaQuparadze"]
[Black "AliKa2810"]
[Result "1-0"]
[WhiteElo "2739"]
[BlackElo "2566"]
[TimeControl "180+1"]
[EndTime "11:50:10 PST"]
[Termination "GigaQuparadze won by resignation"]

1. e4 {[%clk 0:02:55.5]} 1... e5 {[%clk 0:03:00.2]} 2. f4 {[%clk 0:02:54.9]}
2... d5 {[%clk 0:02:58.4]} 3. exd5 {[%clk 0:02:52.8]} 3... exf4 {[%clk
0:02:58.4]} 4. d4 {[%clk 0:02:52]} 4... Qh4+ {[%clk 0:02:55.4]} 5. Ke2 {[%clk
0:02:52.1]} 5... Bg4+ {[%clk 0:02:53.1]} 6. Nf3 {[%clk 0:02:52.2]} 6... Nf6
{[%clk 0:02:51.1]} 7. c4 {[%clk 0:02:50.8]} 7... Bd6 {[%clk 0:02:42.4]} 8. Qe1
{[%clk 0:02:49.6]} 8... Qh5 {[%clk 0:02:41.9]} 9. Kf2+ {[%clk 0:02:47.4]} 9...
Kd8 {[%clk 0:02:24]} 10. Be2 {[%clk 0:02:32.4]} 10... Re8 {[%clk 0:02:23.3]} 11.
Nc3 {[%clk 0:02:31]} 11... Bxf3 {[%clk 0:01:42.8]} 12. gxf3 {[%clk 0:02:29.4]}
12... c6 {[%clk 0:01:39.2]} 13. c5 {[%clk 0:02:26.2]} 13... Qh4+ {[%clk
0:01:35.2]} 14. Kg2 {[%clk 0:02:23.3]} 14... Qg5+ {[%clk 0:01:29.9]} 15. Kf1
{[%clk 0:02:23.1]} 15... Nxd5 {[%clk 0:01:20.7]} 16. Nxd5 {[%clk 0:02:18.7]}
16... cxd5 {[%clk 0:01:19.7]} 17. cxd6 {[%clk 0:02:17.4]} 17... Nc6 {[%clk
0:01:19.5]} 18. Qf2 {[%clk 0:02:07.1]} 18... Rc8 {[%clk 0:01:15.4]} 19. Bd2
{[%clk 0:02:03.4]} 19... Qf6 {[%clk 0:01:05.4]} 20. Bc3 {[%clk 0:02:03]} 20...
Qxd6 {[%clk 0:01:04]} 21. Rg1 {[%clk 0:02:01.7]} 21... Qf6 {[%clk 0:01:03.4]}
22. Bb5 {[%clk 0:01:58.9]} 22... Rc7 {[%clk 0:00:55.1]} 23. Re1 {[%clk
0:01:54.1]} 23... Rxe1+ {[%clk 0:00:51.5]} 24. Qxe1 {[%clk 0:01:54.1]} 24... Re7
{[%clk 0:00:49.6]} 25. Qf2 {[%clk 0:01:54.2]} 25... g6 {[%clk 0:00:45]} 26. Kg2
{[%clk 0:01:50.6]} 26... Re3 {[%clk 0:00:41.4]} 27. Kh1 {[%clk 0:01:50.3]} 27...
Nxd4 {[%clk 0:00:40.3]} 28. Qd2 {[%clk 0:01:48.7]} 1-0

[Event "*** Titled Tuesday Blitz"]
[Site "Chess.com"]
[Date "2020.11.10"]
[Round "9"]
[White "hypert"]
[Black "Roman_Ovetchkin"]
[Result "0-1"]
[WhiteElo "2473"]
[BlackElo "2607"]
[TimeControl "180+1"]
[EndTime "11:50:25 PST"]
[Termination "Roman_Ovetchkin won by resignation"]

1. e4 {[%clk 0:03:00.9]} 1... c6 {[%clk 0:02:59.9]} 2. Nf3 {[%clk 0:03:01.4]}
2... d5 {[%clk 0:03:00.8]} 3. Nc3 {[%clk 0:03:01.7]} 3... dxe4 {[%clk 0:03:01]}
4. Nxe4 {[%clk 0:03:02.6]} 4... Nf6 {[%clk 0:03:01.4]} 5. Qe2 {[%clk 0:03:03.2]}
5... Bg4 {[%clk 0:02:59.6]} 6. Nxf6+ {[%clk 0:03:01.2]} 6... gxf6 {[%clk
0:03:00.5]} 7. h3 {[%clk 0:03:01.7]} 7... Bh5 {[%clk 0:02:59.3]} 8. g4 {[%clk
0:03:00.2]} 8... Bg6 {[%clk 0:02:59.3]} 9. d3 {[%clk 0:03:00.8]} 9... c5 {[%clk
0:02:35.3]} 10. Bg2 {[%clk 0:03:00]} 10... Nc6 {[%clk 0:02:35.4]} 11. Be3 {[%clk
0:02:57.4]} 11... e6 {[%clk 0:02:29.1]} 12. Nh4 {[%clk 0:02:57]} 12... Qc7
{[%clk 0:02:22.2]} 13. O-O-O {[%clk 0:02:40.6]} 13... Bd6 {[%clk 0:02:12.4]} 14.
Qd2 {[%clk 0:02:23.3]} 14... O-O-O {[%clk 0:02:06.5]} 15. f4 {[%clk 0:02:22]}
15... f5 {[%clk 0:02:05.4]} 16. Qf2 {[%clk 0:02:03.9]} 16... Nd4 {[%clk
0:01:57.9]} 17. c3 {[%clk 0:01:50.1]} 17... Bxf4 {[%clk 0:01:53.9]} 18. gxf5
{[%clk 0:01:24]} 18... exf5 {[%clk 0:01:47.8]} 19. Bxf4 {[%clk 0:00:53.2]} 19...
Qxf4+ {[%clk 0:01:45.2]} 20. Rd2 {[%clk 0:00:53.7]} 20... Ne6 {[%clk 0:01:39.4]}
21. Qe1 {[%clk 0:00:20.1]} 21... Rxd3 {[%clk 0:01:32.1]} 22. Nf3 {[%clk
0:00:20.7]} 22... Rhd8 {[%clk 0:01:27]} 23. Rf1 {[%clk 0:00:19]} 23... Rxd2
{[%clk 0:01:16.5]} 24. Nxd2 {[%clk 0:00:18.5]} 24... Qg5 {[%clk 0:01:13.6]} 25.
Qe5 {[%clk 0:00:15.7]} 0-1

[Event "*** Titled Tuesday Blitz"]
[Site "Chess.com"]
[Date "2020.11.10"]
[Round "9"]
[White "KetiGrant"]
[Black "FMJoseHerrera"]
[Result "1-0"]
[WhiteElo "2426"]
[BlackElo "2560"]
[TimeControl "180+1"]
[EndTime "11:50:32 PST"]
[Termination "KetiGrant won by resignation"]

1. e4 {[%clk 0:03:00.9]} 1... c5 {[%clk 0:02:59.6]} 2. Nf3 {[%clk 0:03:00.1]}
2... e6 {[%clk 0:03:00]} 3. d4 {[%clk 0:02:59.6]} 3... cxd4 {[%clk 0:03:00.9]}
4. Nxd4 {[%clk 0:02:59.9]} 4... a6 {[%clk 0:03:00.8]} 5. Bd3 {[%clk 0:02:57.2]}
5... Qc7 {[%clk 0:03:01]} 6. O-O {[%clk 0:02:53.4]} 6... b6 {[%clk 0:03:01.1]}
7. Nc3 {[%clk 0:02:49.3]} 7... Bb7 {[%clk 0:03:01.1]} 8. Qe2 {[%clk 0:02:48.6]}
8... d6 {[%clk 0:03:00.9]} 9. f4 {[%clk 0:02:47.1]} 9... Nd7 {[%clk 0:03:00.5]}
10. Kh1 {[%clk 0:02:46.2]} 10... h5 {[%clk 0:02:59.9]} 11. Bd2 {[%clk
0:02:37.7]} 11... Ngf6 {[%clk 0:02:55.6]} 12. Rae1 {[%clk 0:02:36.7]} 12... h4
{[%clk 0:02:54.7]} 13. Rf3 {[%clk 0:02:10.9]} 13... Be7 {[%clk 0:02:48.4]} 14.
Rh3 {[%clk 0:02:06.1]} 14... O-O-O {[%clk 0:02:04.8]} 15. Bxa6 {[%clk
0:02:02.9]} 15... Nc5 {[%clk 0:01:55.3]} 16. Bxb7+ {[%clk 0:01:56.3]} 16... Qxb7
{[%clk 0:01:56.1]} 17. b4 {[%clk 0:01:54.2]} 17... Ncd7 {[%clk 0:01:53.2]} 18.
Ncb5 {[%clk 0:01:52.4]} 18... g6 {[%clk 0:01:42.9]} 19. Rc3+ {[%clk 0:01:50.5]}
19... Nc5 {[%clk 0:01:35]} 20. bxc5 {[%clk 0:01:41.6]} 20... dxc5 {[%clk
0:01:35.9]} 21. Nf3 {[%clk 0:01:30.2]} 21... h3 {[%clk 0:01:34.6]} 22. Ng5
{[%clk 0:01:17.8]} 22... hxg2+ {[%clk 0:01:32.5]} 23. Qxg2 {[%clk 0:01:17.4]}
23... Rh4 {[%clk 0:01:24.1]} 24. Bc1 {[%clk 0:01:08.7]} 24... Rdh8 {[%clk
0:01:13.4]} 25. h3 {[%clk 0:01:06.9]} 25... Ng4 {[%clk 0:00:58.4]} 26. Nxf7
{[%clk 0:00:56.4]} 26... Rxh3+ {[%clk 0:00:58.2]} 27. Rxh3 {[%clk 0:00:55.2]}
27... Rxh3+ {[%clk 0:00:57]} 28. Qxh3 {[%clk 0:00:54.6]} 28... Nf2+ {[%clk
0:00:57.2]} 29. Kg2 {[%clk 0:00:54.3]} 1-0